Cogmind - Beta 10.2 *** ADVENTURER MODE // 2021.07.16 @ 01:01:46 Player: darlorth Result: Destroyed by D-53 Grenadier with Mini Grenade Launcher Performance ------------- Evolutions (0) 0 Regions Visited (2) 400 Robots Destroyed (9) 45 Value Destroyed (220) 220 Prototype IDs (1) 20 Alien Tech Used (0) 0 Bonus (0) 0 TOTAL SCORE: 685 Bonus ------- None Cogmind --------- Core Integrity 0/250 Matter 259/300 Energy 63/100 System Corruption 0% Temperature Cool (30) Movement Core (50) Location -10/Mines Parts ------- > --- POWER (1) -------- (None) > --- PROPULSION (2) --- (None) > --- UTILITY (2) ------ Sensor Array Signal Interpreter > --- WEAPON (2) ------- (None) > --- INVENTORY (4) ---- Ion Engine Experimental Sensor Array Peak State ------------ > --- POWER ------------ Ion Engine > --- PROPULSION ------- Aluminum Leg Aluminum Leg > --- UTILITY ---------- Experimental Sensor Array Signal Interpreter > --- WEAPON ----------- Light Assault Rifle Mini Grenade Launcher > --- INVENTORY -------- Ion Engine Sensor Array Beam Cannon Light Assault Rifle [Rating: 13] Favorites ----------- Power Ion Engine Engine Ion Engine Propulsion Aluminum Leg Leg Aluminum Leg Utility Signal Interpreter Device Sensor Array Storage Small Storage Unit Processor Signal Interpreter Weapon Light Assault Rifle Energy Gun Medium Laser Energy Cannon Beam Cannon Ballistic Gun Light Assault Rifle Launcher Mini Grenade Launcher Build | -11 -10 -10 ------- Run | Scr Mat Min Slots Evolved . | . . . Power . | . . . Propulsion . | . . . Utility . | . . . Weapon . | . . . Parts Attached 18 | 7 2 9 Power 1 | 1 . . Engine 1 | 1 . . Core . | . . . Reactor . | . . . Propulsion 4 | 2 . 2 Treads . | . . . Leg 4 | 2 . 2 Wheel . | . . . Hover . | . . . Flight . | . . . Utility 5 | 1 2 2 Device 3 | . 1 2 Storage 1 | 1 . . Processor 1 | . 1 . Hackware . | . . . Protection . | . . . Artifact . | . . . Weapon 8 | 3 . 5 Energy Gun 1 | 1 . . Energy Cannon 1 | . . 1 Ballistic Gun 4 | 2 . 2 Ballistic Cannon . | . . . Launcher 2 | . . 2 Special Weapon . | . . . Impact Weapon . | . . . Slashing Weapon . | . . . Piercing Weapon . | . . . Special Melee Weapon . | . . . Unidentified Prototypes 1 | . . 1 Parts Lost 7 | . . 7 Power 1 | . . 1 Propulsion 2 | . . 2 Utility . | . . . Weapon 4 | . . 4 Highest Loss Streak 7 | . . 7 Average Slot Usage (%) 97 | . 97 97 Engine 13 | . 14 13 Leg 27 | . 28 26 Device 13 | . 11 14 Storage 3 | . 9 . Processor 10 | . 4 14 Ballistic Gun 26 | . 28 25 Launcher 1 | . . 2 Naked Turns . | . . . Heaviest Build 12 | 11 12 8 Greatest Support 20 | 20 20 20 Greatest Overweight (x) 2 | . . 2 Average Overweight (x) . | . . . Largest Inventory Capacity 6 | 6 6 4 Average Capacity 4 | 5 5 4 Most Carried 5 | 4 5 4 Average Carried 3 | 1 3 3 Final Capacity 6 | 6 4 4 Final Carried 4 | 2 4 2 Class Distribution -------------------- 100% | Mutant Dominant Class ---------------- Mutant | -10/Materials Mutant | -10/Mines Resources | -11 -10 -10 ----------- Run | Scr Mat Min Matter Collected 398 | 203 103 92 Remotely . | . . . Salvage Created 254 | . 111 143 Parts 20 | . 6 14 Haulers Intercepted . | . . . Recyclers Shooed 1 | . 1 . Parts Field Recycled . | . . . Retrieved Matter . | . . . Parts Self-Destructed . | . . . Prevented . | . . . Kills | -11 -10 -10 ------- Run | Scr Mat Min Combat Hostiles Destroyed 9 | . . 9 Guns 3 | . . 3 AOE 6 | . . 6 Classes Destroyed 6 | . 2 4 Recycler 1 | . 1 . Watcher 1 | . 1 . Swarmer 3 | . . 3 Grunt 3 | . . 3 Demolisher 1 | . . 1 Assembled 2 | . . 2 Best Kill Streak 3 | . 2 3 Combat Bots Only 3 | . . 3 Max Kills in Single Turn 2 | . 1 2 Gunslinging . | . . . Exploded 2 | . . 2 Melee . | . . . Uniques/NPCs Destroyed . | . . . Combat | -11 -10 -10 -------- Run | Scr Mat Min Damage Taken 890 | . 11 879 Core 252 | . . 252 Absorbed by Shields . | . . . Core Remaining (%) 100 | 100 . . Volleys Fired 27 | . 8 19 Largest 2 | . 2 2 Hottest 80 | . 40 80 Shots Fired 50 | . 16 34 Gun 44 | . 16 28 Cannon 1 | . . 1 Launcher 5 | . . 5 Special . | . . . Kinetic 44 | . 16 28 Thermal 1 | . . 1 Explosive 5 | . . 5 Electromagnetic . | . . . Robot Hit Streak 17 | . 5 17 Robot Miss Streak 1 | . 1 1 Penetration Max . | . . . Secondary Targets 1 | . . 1 Max Gunslinging Chain 1 | . . 1 Shots Hit Robots 40 | . 11 29 Core Hits 27 | . 4 23 Critical Hits . | . . . Critical Kills . | . . . Critical Parts Destroyed . | . . . Melee Attacks . | . . . Impact . | . . . Slashing . | . . . Piercing . | . . . Sneak Attacks . | . . . Combat Hostiles . | . . . Follow-up Attacks . | . . . Damage Inflicted 786 | . 67 719 Guns 274 | . 67 207 Cannons 17 | . . 17 Explosions 495 | . . 495 Melee . | . . . Ramming . | . . . Kinetic 274 | . 67 207 Thermal 17 | . . 17 Explosive 495 | . . 495 Electromagnetic . | . . . Impact . | . . . Slashing . | . . . Piercing . | . . . Highest Corruption . | . . . Average Corruption . | . . . Corruption Purged . | . . . Overload Shots . | . . . Overflow Damage . | . . . Projectiles . | . . . Explosions . | . . . Melee . | . . . Knockbacks . | . . . Impact . | . . . Kinetic . | . . . Secondary . | . . . Self-Inflicted Damage 96 | . . 96 Shots 3 | . . 3 Rammed . | . . . Targets Rammed . | . . . Kicked . | . . . Crushed . | . . . Highest Temperature 30 | . . 30 Average Temperature 10 | . . 10 Received Heat Transfer 113 | . 9 104 Siege Activations . | . . . Robots Corrupted . | . . . Combat Hostiles . | . . . Parts Fried . | . . . Impact Corruptions . | . . . Robots Melted . | . . . Combat Hostiles . | . . . Parts Melted . | . . . Heat Transferred 37 | . . 37 Parts Sabotaged . | . . . Parts Stolen . | . . . Parts Stripped . | . . . Power Chain Reactions . | . . . Missiles Intercepted . | . . . Alert | -11 -10 -10 ------- Run | Scr Mat Min Peak Influence 163 | . 27 163 Initial 8 | . . 8 Average 72 | . 7 123 Maximum Alert Level . | . . . Low Security (%) 100 | 100 100 100 Level 1 . | . . . Level 2 . | . . . Level 3 . | . . . Level 4 . | . . . Level 5 . | . . . High Security . | . . . Max Security . | . . . Squads Dispatched . | . . . Investigation . | . . . Extermination . | . . . Reinforcement . | . . . Assault . | . . . Garrison . | . . . Intercept . | . . . Construction Impeded . | . . . Haulers Reinforced . | . . . Stealth | -11 -10 -10 --------- Run | Scr Mat Min Distress Signals 1 | . 1 . Communications Jammed . | . . . Distress Signals . | . . . Times Spotted 21 | . 4 17 Peak Tracking Total 8 | . 3 8 Tactical Retreats . | . . . Traps | -11 -10 -10 ------- Run | Scr Mat Min Traps Triggered . | . . . Indirectly . | . . . Trap Hack Attempts . | . . . Triggered . | . . . Disarmed . | . . . Reprogrammed . | . . . Reused . | . . . Traps Extracted . | . . . Installed . | . . . Triggered . | . . . Machines | -11 -10 -10 ---------- Run | Scr Mat Min Machines Disabled . | . . . Max in Single Turn . | . . . Machines Sabotaged . | . . . Garrisons Compromised . | . . . Overloaded Fab Kills . | . . . Fab Network Shutdowns . | . . . Hacking | -11 -10 -10 --------- Run | Scr Mat Min Machines Accessed 1 | . . 1 Terminals 1 | . . 1 Fabricators . | . . . Repair Stations . | . . . Recycling Units . | . . . Scanalyzers . | . . . Garrison Access . | . . . Total Hacks 2 | . . 2 Successful 1 | . . 1 Failed 1 | . . 1 Catastrophic . | . . . Database Lockouts . | . . . Manual 2 | . . 2 Terminals 2 | . . 2 Fabricators . | . . . Repair Stations . | . . . Recycling Units . | . . . Scanalyzers . | . . . Garrison Access . | . . . Terminal Hacks 1 | . . 1 Branch Access Points 1 | . . 1 Fabricator Hacks . | . . . Repair Station Hacks . | . . . Recycling Unit Hacks . | . . . Scanalyzer . | . . . Garrison Access Hacks . | . . . Unauthorized Hacks . | . . . Terminals . | . . . Fabricators . | . . . Repair Stations . | . . . Recycling Units . | . . . Scanalyzers . | . . . Garrison Access . | . . . Data Cores Recovered . | . . . Used . | . . . Hacking Detections 1 | . . 1 Full Trace Events . | . . . Feedback Events . | . . . Feedback Blocked . | . . . Robot Schematics Acquired . | . . . Robots Built . | . . . Matter . | . . . Time . | . . . Total Robot Build Rating . | . . . Part Schematics Acquired . | . . . Parts Built . | . . . Matter . | . . . Time . | . . . Total Part Build Rating . | . . . Parts Repaired . | . . . Time . | . . . Parts Recycled . | . . . Recycled Matter . | . . . Retrieved Matter . | . . . Retrieved Components . | . . . Parts Scanalyzed . | . . . Part Schematics Acquired . | . . . Parts Damaged . | . . . Bothacking | -11 -10 -10 ------------ Run | Scr Mat Min Used RIF Installer . | . . . Robots Hacked . | . . . Non-combat . | . . . Combat . | . . . Robot Hacks Applied . | . . . Relay Couplers Released . | . . . Robots Rewired . | . . . Allies Hacked . | . . . Hacks Repelled . | . . . Allies | -11 -10 -10 -------- Run | Scr Mat Min Total Allies . | . . . Largest Group . | . . . Highest-Rated Group . | . . . Highest-Rated Ally . | . . . Total Orders . | . . . Ally Attacks . | . . . Total Damage . | . . . Kills . | . . . Allies Corrupted . | . . . Allies Melted . | . . . Intel | -11 -10 -10 ------- Run | Scr Mat Min Robot Analysis Total . | . . . Derelict Logs Recovered . | . . . Drone Launches . | . . . Drone Recoveries . | . . . Exploration | -11 -10 -10 ------------- Run | Scr Mat Min Turns Passed 427 | 62 122 243 Spaces Moved 274 | 50 78 146 Core 19 | 17 . 2 Treads . | . . . Legs 255 | 33 78 144 Wheels . | . . . Hover . | . . . Flight . | . . . Fastest Speed 50 | 50 120 120 Average Speed 115 | 96 120 120 Slowest Speed 150 | 120 120 150 Overloaded Moves . | . . . Propulsion Burnouts . | . . . Robots Hopped . | . . . Cave-ins Triggered . | . . . Exploration Rate (%) 16 | 3 23 23 Regions Visited 2 Branch Regions 1 Pre-discovered Areas . | . . . Known Exits Taken 1 | . 1 . Unknown Exits Taken 1 | 1 . . Scrap Searched . | . . . Spaces Dug . | . . . Terrain Destroyed 40 | . . 40 Melee . | . . . Projectile . | . . . AOE 40 | . . 40 Terrain Rammed . | . . . Walls Destroyed . | . . . Machines Disabled . | . . . Actions | -11 -10 -10 --------- Run | Scr Mat Min Total 340 | 63 93 184 Wait 6 | . . 6 Move 272 | 49 77 146 Hop . | . . . Pick Up 13 | 7 5 1 Fast Attach 1 | 1 . . Attach 8 | 5 1 2 Detach . | . . . Swap 9 | 1 1 7 Drop 4 | . 1 3 Fire 27 | . 8 19 Melee . | . . . Ram . | . . . Kick . | . . . Crush . | . . . Escape Stasis . | . . . Rewire . | . . . Trap . | . . . Miscellaneous . | . . . Route ------- -11/Scrapyard -10/Materials -10/Mines History --------- Turn | Location | Event 3 | -11/Scrapyard | Discovered new exit (range 16) 63 | -11/Scrapyard | Entered Materials 141 | -10/Materials | Discovered new exit (range 15) 183 | -10/Materials | Identified exit to Mines 185 | -10/Materials | Entered Mines 263 | -10/Mines | Found a damaged Exp. Sensor Array with a note attached 266 | -10/Mines | Found Prototype Device 267 | -10/Mines | Identified Exp. Sensor Array 307 | -10/Mines | Build established: Mutant 372 | -10/Mines | Assembled infested the area 419 | -10/Mines | Core integrity fell below 50% 423 | -10/Mines | Core integrity fell below 20% 428 | -10/Mines | Destroyed by D-53 Grenadier with Mini Grenade Launcher Last Messages --------------- 00414_ Lgt. Assault Rifle destroyed. 00414_ Aluminum Leg destroyed. 00417_ The unstable cave ceiling collapses. 00417_ Aluminum Leg destroyed. 00419_ Ion Engine destroyed. 00420_ U-05 Engineer lays Concrete. 00422_ D-53 Grenadier destroyed. 00422_ Mni. Grenade Launcher destroyed. 00423_ The unstable cave ceiling collapses. 00423_ U-05 Engineer lays Concrete. 00424_ The unstable cave ceiling collapses. 00424_ U-05 Engineer lays Concrete. 00425_ The unstable cave ceiling collapses. 00425_ U-05 Engineer lays Concrete. 00426_ The unstable cave ceiling collapses. 00426_ U-05 Engineer lays Concrete. 00426_ Beam Cannon destroyed. 00427_ U-05 Engineer lays Concrete. 00428_ The unstable cave ceiling collapses. 00428_ Lgt. Assault Rifle destroyed. Map ----- +----------------------------------------------------+ | ??????????????? #?????????????????????????????? | | ??????????????? #?????????????????????????????? | | ??????????????# #?????????????????????????????? | | ??????????????# #?????????????????????????????? | | ??????????????# #?????????????????????????????? | | ??????????????# #?????????????????????????????? | | ??????????????# #?????????????????????????????? | | ?????????????## ##?????####???????????????????? | | ????????????## #????## ##??????????????????? | | ????????????# #????# #??????????????????? | | ????????????# #????# #??????????????????? | | ????????????# #????# #?????########??????? | | ?????????????# ##??## #?????# #??????? | | ?????????????# #### #?????# #??????? | | ?????????????# #????##########?????? | | ?????????????## = ##????# =##?????? | | ??????????????## *%[#### #?????# ###????? | | ?????????#####?## !##??# ####### # #????? | | ?????????? #??#% ##???# ###????? | | ???????????# #### #????######### #??????? | | ???????????# ####### ##??#T#######??????? | | ???????????###### ## ######????????????? | | ????????????????# # ##??????????????? | | ??????????????###* #??????????????? | | ?????????????## u #??????????????? | | ????????????## k @ #??????????????? | | ????????????# #??????????????? | | ????????????# d ##??????????????? | | ????????????# # #???????????????? | | ??????????### #???????????????? | | ?????????## #### ###???????????????? | | ?????????# # #???#####?????????????????? | | ?????????# ##??????????????????????????? | | ????????## * % % #???????????????????????????? | | ????????# ! #???????????????????????????? | | ????????# #???????????????????????????? | | ????????## ## #??????????????????????????? | | ?????????## #### #??????????????????????????? | | ??????????## ##??? #??????????????????????????? | | ???????????# #???? ??????????????????????????? | | ???????????# #???? ?????????????????????????? | | ???????????# #???? ????????????????????????? | | ???????????# #???? ????????????????????????? | | ???????????# #???? ##???????????????????????? | | ???????????# #?????? ????????????????????????? | | ???????????# #??????!! ????????????????????????? | | ???????????# #??????? ????????????????????????? | | ???????????# #??????? ????????????????????????? | | ???????????? ????????=?????????????????????????? | | ???????????? ??????????????????????????????????? | +----------------------------------------------------+ Best States ------------- Heat Dissipation 25 Energy Generation 10 Energy Capacity 250 Matter Stores 300 Matter Capacity 300 Sight Range 16 Robot Scan Range 30 Terrain Scan Density 10 Resistance: KI 20 Resistance: TH 20 Resistance: EX 20 Resistance: EM 20 Resistance: I 20 Resistance: S 20 Resistance: P 20 Evasion (%) 50 Offensive Hacking 10 Item Schematics ----------------- None Robot Schematics ------------------ None Fabricated ------------ Nothing Alien Tech Used ----------------- None Achievements -------------- None Challenges ------------ None Game ------ Seed SupersonicMolecularTearclaws Manual? 0 Play Time 00:07:57 Cumulative 167.0 hours Start 2021.07.16 @ 00:56:01 End 2021.07.16 @ 01:01:46 Sessions 1 Manual Loads 0 Difficulty Adventurer Special Mode None Game No. 194 Rogue 106 Adventurer 42 Explorer 46 Win Type - Total 6 Types 5/0/1/0/0/0/0/0/0 Lore% 31 Gallery% 65 Achievement% 52 Wizard Run 0 Options --------- ASCII 0 Keyboard 0 Movement Mouse Keybinds 0 Fullscreen 1 Font 12/Smallcaps Map View 83x54 Tactical HUD 1 Map Filters NONE Filters NONE Steam 1 RUN: c9a05447-2da6-417a-a1bd-742b95388b37